Cogmind - Beta 13 @@@ ROGUE MODE // 2024.04.29 @ 14:17:50 Player: Some Pennies Result: Destroyed by Y-45 Defender with Beam Rifle Performance ------------- Evolutions (2) 1000 Regions Visited (6) 1200 Robots Destroyed (102) 510 Value Destroyed (2278) 2278 Prototype IDs (37) 740 Alien Tech Used (0) 0 Bonus (167) 167 TOTAL SCORE: 5895 Bonus ------- High Alert Combat Kills 6 Follower Combat Kills 440 Friendly Fire -279 Cogmind --------- Core Integrity 0/550 Matter 285/300 Energy 274/280 System Corruption 0% Temperature Cool (9) Movement Treading (163) Location -8/Storage Parts ------- > --- POWER (1) -------- Heavy Ion Engine > --- PROPULSION (3) --- Armored Treads Medium Treads Medium Treads > --- UTILITY (5) ------ Improved Heat Sink Improved Heat Sink High-capacity Storage Unit Improved Signal Interpreter > --- WEAPON (2) ------- Ion Cannon Chainsword > --- INVENTORY (20) --- Heavy Ion Engine Light Treads Medium Treads Medium Treads Improved Flight Unit Improved Flight Unit Improved Heat Sink Machine Analyzer Makeshift Sensor Array Improved Signal Interpreter Makeshift Cloaking Device Hacking Suite System Shield Trap Reconfigurator Improved Recalibrator Particle Gun Backup Laser III Peak State ------------ > --- POWER ------------ Heavy Ion Engine > --- PROPULSION ------- Armored Treads Advanced Treads Advanced Treads > --- UTILITY ---------- Large Storage Unit Makeshift Sensor Array Improved Signal Interpreter Makeshift System Shield Trap Reconfigurator > --- WEAPON ----------- Advanced Beam Cannon Advanced Beam Cannon > --- INVENTORY -------- Heavy Ion Engine Heavy Ion Engine Armored Treads Armored Treads Advanced Treads Improved Flight Unit Improved Flight Unit Improved Heat Sink Improved Signal Interpreter Makeshift Cloaking Device Reactive Plating Reactive Plating Hacking Suite Enhanced Autogun Chainsword [Rating: 46] Favorites ----------- Power Heavy Ion Engine Engine Heavy Ion Engine Power Core Light Nuclear Core Propulsion Light Treads Treads Light Treads Leg Aluminum Leg Flight Unit Improved Flight Unit Utility Improved Signal Interpreter Device Seismic Detector Storage High-capacity Storage Unit Processor Improved Signal Interpreter Hackware Makeshift System Shield Protection Reactive Plating Weapon Advanced Beam Cannon Energy Gun Advanced Beam Rifle Energy Cannon Advanced Beam Cannon Ballistic Gun Shotgun Launcher Advanced EMP Blaster Impact Weapon Hammer Slashing Weapon Chainsword Piercing Weapon Makeshift Spear Build | -11 -10 -10 -10 -9 -8 -8 ------- Run | Yrd Mat Min Exi Min Mat Sto Slots Evolved 4 | . . . . . 4 . Power . | . . . . . . . Propulsion 1 | . . . . . 1 . Utility 3 | . . . . . 3 . Weapon . | . . . . . . . Parts Attached 125 | 7 14 8 9 2 70 15 Power 7 | 1 2 2 . . 2 . Engine 6 | 1 2 1 . . 2 . Core 1 | . . 1 . . . . Reactor . | . . . . . . . Propulsion 26 | 2 5 2 . . 14 3 Treads 24 | 2 5 2 . . 12 3 Leg 1 | . . . . . 1 . Wheel . | . . . . . . . Hover . | . . . . . . . Flight 1 | . . . . . 1 . Utility 49 | 2 2 4 2 . 29 10 Device 30 | 1 2 3 . . 18 6 Storage 5 | 1 . 1 2 . 1 . Processor 3 | . . . . . 3 . Hackware 3 | . . . . . 3 . Protection 8 | . . . . . 4 4 Artifact . | . . . . . . . Weapon 43 | 2 5 . 7 2 25 2 Energy Gun 4 | . . . . . 4 . Energy Cannon 17 | . . . . 1 15 1 Ballistic Gun 14 | 2 4 . 6 1 1 . Ballistic Cannon . | . . . . . . . Launcher 1 | . . . . . 1 . Special Weapon . | . . . . . . . Impact Weapon 2 | . 1 . . . 1 . Slashing Weapon 4 | . . . . . 3 1 Piercing Weapon 1 | . . . 1 . . . Special Melee Weapon . | . . . . . . . Unidentified Prototypes 8 | . . . . . 8 . Parts Lost 10 | . . . . . 3 7 Power . | . . . . . . . Propulsion 3 | . . . . . . 3 Utility 5 | . . . . . 3 2 Weapon 2 | . . . . . . 2 Highest Loss Streak 2 | . . . . . 2 2 To Critical Strikes . | . . . . . . . Average Slot Usage (%) 98 | . 100 100 91 100 99 99 Engine 7 | . 14 9 . . 8 9 Core 3 | . . 4 14 14 . . Treads 27 | . 28 28 28 28 26 26 Device 11 | . 14 14 14 14 10 7 Storage 11 | . 14 14 14 14 9 9 Processor 4 | . . . . . 8 9 Hackware 7 | . . . . . 13 12 Protection 2 | . . . . . 3 6 Energy Cannon 9 | . . . . 13 15 17 Ballistic Gun 8 | . 27 28 11 14 . . Piercing Weapon 1 | . . . 8 . . . Naked Turns . | . . . . . . . Heaviest Build 78 | 14 15 21 31 33 75 78 Greatest Support 76 | 40 40 40 40 40 64 76 Greatest Overweight (x) 1 | . . . . . 1 1 Average Overweight (x) . | . . . . . . . Largest Inventory Capacity 20 | 8 8 8 15 15 20 20 Average Capacity 14 | 7 8 8 11 15 17 20 Most Carried 20 | 5 8 8 14 15 20 20 Average Carried 13 | 3 7 7 9 14 16 19 Final Capacity 20 | 8 8 8 15 15 20 20 Final Carried 20 | 5 8 8 14 15 20 17 Class Distribution -------------------- 56% | Mutant 21% | Commander-Mutant 20% | Hacker-Mutant Dominant Class ---------------- Mutant | -10/Materials Mutant | -10/Mines Commander-Mutant | -10/Exiles Commander-Mutant | -9/Mines Mutant | -8/Materials Hacker-Mutant | -8/Storage Resources | -11 -10 -10 -10 -9 -8 -8 ----------- Run | Yrd Mat Min Exi Min Mat Sto Matter Collected 2152 | 294 588 200 108 43 804 115 Remotely . | . . . . . . . Salvage Created 4195 | 116 791 236 145 15 1787 1105 Parts 237 | 11 51 18 6 2 105 44 Haulers Intercepted 10 | . 2 . . . 6 2 Recyclers Shooed 7 | 1 2 1 . . 2 1 Parts Field Recycled . | . . . . . . . Retrieved Matter . | . . . . . . . Parts Self-Destructed . | . . . . . . . Prevented . | . . . . . . . Kills | -11 -10 -10 -10 -9 -8 -8 ------- Run | Yrd Mat Min Exi Min Mat Sto Combat Hostiles Destroyed 50 | . 10 5 . . 18 17 Melee 2 | . . . . . . 2 Guns 15 | . 10 5 . . . . Cannons 32 | . . . . . 17 15 Classes Destroyed 15 | 2 7 . . . 4 2 Worker 12 | . 3 1 . 1 7 . Builder 5 | . 1 1 . . 2 1 Tunneler 3 | 2 . 1 . . . . Hauler 10 | . 2 . . . 6 2 Recycler 9 | 1 3 . . . 5 . Mechanic 1 | . . . . . . 1 Operator 4 | . 2 . . . 1 1 Watcher 5 | . 3 . . . 1 1 Swarmer 11 | . 5 2 . . 4 . Grunt 26 | . 5 3 . . 6 12 Brawler 1 | . . . . . 1 . Duelist 1 | . . . . . . 1 Sentry 10 | . . . . . 6 4 Heavy 1 | . . . . . 1 . Zionite 1 | . . . . . 1 . Thug 2 | . . 1 . . 1 . Best Kill Streak 5 | 2 5 3 . 1 4 5 Combat Bots Only 4 | . 3 3 . . 4 4 Max Kills in Single Turn 2 | 1 1 2 . 1 2 1 Gunslinging . | . . . . . . . Exploded . | . . . . . . . Melee 1 | . . . . . . 1 Uniques/NPCs Destroyed . | . . . . . . . Combat | -11 -10 -10 -10 -9 -8 -8 -------- Run | Yrd Mat Min Exi Min Mat Sto Hostile Shots Fired 308 | . 58 34 . 3 67 146 Missed 78 | . 13 6 . 1 17 41 Damage Taken 3848 | . 546 347 . 43 1259 1653 Core 727 | . 92 59 . 14 385 177 Absorbed by Shields . | . . . . . . . Ignored by Resistances 72 | . . . . . 52 20 Regen/Repaired (Parts) 313 | . . . . . 313 . Core Remaining (%) 67 | 100 . . . 34 . . Volleys Fired 251 | 6 54 15 . 4 88 84 Largest 2 | 2 2 2 . 2 2 2 Hottest 143 | 40 46 46 . 91 143 120 Shots Fired 472 | 12 109 30 1 9 152 159 Gun 168 | 12 109 30 1 5 11 . Cannon 304 | . . . . 4 141 159 Launcher . | . . . . . . . Special . | . . . . . . . Kinetic 158 | 12 109 30 1 5 1 . Thermal 314 | . . . . 4 151 159 Explosive . | . . . . . . . Electromagnetic . | . . . . . . . Robot Hit Streak 20 | 6 20 10 1 2 15 17 Robot Miss Streak 4 | 1 3 4 1 2 4 4 Penetration Max . | . . . . . . . Secondary Targets 4 | . 3 1 . . . . Max Gunslinging Chain 1 | . 1 1 . . . . Shots Hit Robots 328 | 8 76 21 7 4 101 111 Core Hits 143 | 5 36 12 3 2 50 35 Critical Kills 3 | . . . . . 3 . Critical Parts Destroyed 1 | . . 1 . . . . Critical Strikes 11 | . . 1 1 . 7 2 Meltdown 2 | . . . . . 2 . Destroy 2 | . . 1 . . 1 . Sever 6 | . . . . . 4 2 Impale 1 | . . . 1 . . . Melee Attacks 28 | . 4 . 6 . 13 5 Impact 4 | . 4 . . . . . Slashing 18 | . . . . . 13 5 Piercing 6 | . . . 6 . . . Sneak Attacks 2 | . 1 . . . 1 . Combat Hostiles . | . . . . . . . Follow-up Attacks . | . . . . . . . Damage Inflicted 6846 | 79 884 320 369 77 2332 2785 Guns 1444 | 79 837 320 10 57 141 . Cannons 4615 | . . . . 20 1962 2633 Explosions . | . . . . . . . Melee 787 | . 47 . 359 . 229 152 Ramming . | . . . . . . . Kinetic 1324 | 79 837 320 10 57 21 . Thermal 4735 | . . . . 20 2082 2633 Explosive . | . . . . . . . Electromagnetic . | . . . . . . . Impact 47 | . 47 . . . . . Slashing 381 | . . . . . 229 152 Piercing 359 | . . . 359 . . . Highest Corruption 2 | . 2 2 2 2 . . Average Corruption 2 | . 2 2 2 2 . . Corruption Purged . | . . . . . . . Corruption Blocked . | . . . . . . . Effects 46 | . 9 10 19 8 . . Message Errors 6 | . 2 1 2 1 . . Matter Fused 6 | . 1 1 1 3 . . Heat Flow Errors 10 | . 1 3 5 1 . . Energy Discharges 6 | . 1 2 2 1 . . Parts Fused 1 | . 1 . . . . . Data Loss (minor) 6 | . . 1 4 1 . . Data Loss (major) 7 | . 2 1 4 . . . Misfires 3 | . 1 . 1 1 . . Alerts 1 | . . 1 . . . . Overload Shots . | . . . . . . . Overflow Damage 121 | . 17 . 7 . 16 81 Projectiles 78 | . . . . . 16 62 Explosions . | . . . . . . . Melee 43 | . 17 . 7 . . 19 Knockbacks . | . . . . . . . Impact . | . . . . . . . Kinetic . | . . . . . . . Secondary . | . . . . . . . Self-Inflicted Damage . | . . . . . . . Shots . | . . . . . . . Rammed . | . . . . . . . Targets Rammed . | . . . . . . . Kicked . | . . . . . . . Crushed . | . . . . . . . Highest Temperature 722 | . 247 217 278 103 722 530 Average Temperature 120 | . 49 77 105 30 125 145 Received Heat Transfer 1437 | . 141 219 . 24 135 918 Effects 34 | . . . 2 . 24 8 Shutdowns 4 | . . . . . 3 1 Energy Bleed 5 | . . . 1 . 1 3 Interference 6 | . . . 1 . 3 2 Matter Decay 2 | . . . . . 2 . Short Circuit 3 | . . . . . 3 . Damage (minor) 4 | . . . . . 2 2 Damage (major) 8 | . . . . . 8 . Damage (core) 2 | . . . . . 2 . Siege Activations . | . . . . . . . Robots Corrupted . | . . . . . . . Combat Hostiles . | . . . . . . . Parts Fried 2 | . 2 . . . . . Impact Corruptions 2 | . 2 . . . . . Robots Melted 2 | . . . . . 2 . Combat Hostiles 1 | . . . . . 1 . Parts Melted 22 | . . . . . 14 8 Heat Transferred 7733 | . . . . 37 3663 4033 Parts Sabotaged . | . . . . . . . Parts Stolen . | . . . . . . . Parts Stripped . | . . . . . . . Power Chain Reactions . | . . . . . . . Alert | -11 -10 -10 -10 -9 -8 -8 ------- Run | Yrd Mat Min Exi Min Mat Sto Peak Influence 471 | 15 215 169 . 109 471 338 Initial 156 | . 9 1 . . 2 156 Average 199 | 9 68 93 . 53 275 239 Maximum Alert Level 2 | . 1 . . . 2 1 Low Security (%) 38 | 100 92 100 . 100 5 20 Level 1 57 | . 7 . . . 88 79 Level 2 3 | . . . . . 5 . Level 3 . | . . . . . . . Level 4 . | . . . . . . . Level 5 . | . . . . . . . High Security . | . . . . . . . Max Security . | . . . . . . . Squads Dispatched 10 | . 3 . . . 5 2 Investigation 1 | . 1 . . . . . Extermination . | . . . . . . . Reinforcement 8 | . 2 . . . 4 2 Assault 1 | . . . . . 1 . Garrison . | . . . . . . . Intercept . | . . . . . . . Searches Triggered . | . . . . . . . Construction Impeded 2 | . . . . . 1 1 Haulers Reinforced . | . . . . . . . Active Scanning Responses . | . . . . . . . Cargo Convoy Interrupts . | . . . . . . . Stealth | -11 -10 -10 -10 -9 -8 -8 --------- Run | Yrd Mat Min Exi Min Mat Sto Distress Signals 7 | . 1 . . . 3 3 Communications Jammed . | . . . . . . . Distress Signals . | . . . . . . . Times Spotted 108 | . 19 13 . 4 45 27 Peak Tracking Total 8 | . 3 4 . 2 8 4 Tactical Retreats 3 | . . 1 . . 1 1 Traps | -11 -10 -10 -10 -9 -8 -8 ------- Run | Yrd Mat Min Exi Min Mat Sto Traps Triggered 4 | . 2 . . . 2 . Indirectly . | . . . . . . . Trap Hack Attempts . | . . . . . . . Triggered . | . . . . . . . Disarmed . | . . . . . . . Reprogrammed . | . . . . . . . Reused . | . . . . . . . Traps Reconfigurated 11 | . . . . . 11 . Traps Extracted . | . . . . . . . Installed . | . . . . . . . Triggered . | . . . . . . . Machines | -11 -10 -10 -10 -9 -8 -8 ---------- Run | Yrd Mat Min Exi Min Mat Sto Machines Disabled 10 | . . . . 1 7 2 Max in Single Turn 2 | . . . . . 1 2 Machines Repaired . | . . . . . . . Machines Dismantled . | . . . . . . . Machines Sabotaged . | . . . . . . . Overloaded Fab Kills . | . . . . . . . Hacking | -11 -10 -10 -10 -9 -8 -8 --------- Run | Yrd Mat Min Exi Min Mat Sto Machines Accessed 21 | . 5 1 1 . 13 1 Terminals 16 | . 5 1 . . 9 1 Fabricators . | . . . . . . . Repair Stations 2 | . . . . . 2 . Recycling Units 1 | . . . . . 1 . Scanalyzers 1 | . . . . . 1 . Garrison Access . | . . . . . . . Total Hacks 87 | . 15 1 1 . 64 6 Successful 42 | . 4 . 1 . 36 1 Failed 43 | . 10 1 . . 27 5 Catastrophic 9 | . 3 . . . 6 . Database Lockouts 2 | . 1 . . . 1 . Manual 40 | . 12 1 1 . 22 4 Terminals 53 | . 15 1 . . 31 6 Fabricators . | . . . . . . . Repair Stations 16 | . . . . . 16 . Recycling Units 2 | . . . . . 2 . Scanalyzers 15 | . . . . . 15 . Garrison Access . | . . . . . . . Terminal Hacks 15 | . 4 . 1 . 9 1 Robot Analysis 4 | . 2 . . . 2 . Prototype ID Bank 3 | . . . . . 2 1 Unreport Threat 2 | . 1 . . . 1 . Locate Traps 3 | . 1 . . . 2 . Recall Assault 1 | . . . . . 1 . Zone Layout 1 | . . . . . 1 . Derelict Proto ID Bank 1 | . . . 1 . . . Fabricator Hacks . | . . . . . . . Repair Station Hacks 14 | . . . . . 14 . Scan Component 7 | . . . . . 7 . Repair 7 | . . . . . 7 . Recycling Unit Hacks . | . . . . . . . Scanalyzer 12 | . . . . . 12 . Insert Component 4 | . . . . . 4 . Analyze 8 | . . . . . 8 . Garrison Access Hacks . | . . . . . . . Unauthorized Hacks 1 | . . . . . 1 . Terminals . | . . . . . . . Fabricators . | . . . . . . . Repair Stations . | . . . . . . . Recycling Units 1 | . . . . . 1 . Mask 1 | . . . . . 1 . Scanalyzers . | . . . . . . . Garrison Access . | . . . . . . . Data Cores Recovered 1 | . . . . . . 1 Used . | . . . . . . . Hacking Detections 17 | . 4 1 . . 11 1 Full Trace Events 2 | . 2 . . . . . Feedback Events . | . . . . . . . Feedback Blocked . | . . . . . . . Robot Schematics Acquired . | . . . . . . . Robots Built . | . . . . . . . Authchips . | . . . . . . . Time . | . . . . . . . Total Robot Build Rating . | . . . . . . . Part Schematics Acquired 3 | . . . . . 3 . Parts Built . | . . . . . . . Authchips . | . . . . . . . Time . | . . . . . . . Total Part Build Rating . | . . . . . . . Parts Repaired 7 | . . . . . 7 . Time 373 | . . . . . 373 . Parts Recycled . | . . . . . . . Recycled Matter . | . . . . . . . Retrieved Matter . | . . . . . . . Retrieved Components . | . . . . . . . Parts Scanalyzed 3 | . . . . . 3 . Part Schematics Acquired 3 | . . . . . 3 . Parts Damaged 2 | . . . . . 2 . Bothacking | -11 -10 -10 -10 -9 -8 -8 ------------ Run | Yrd Mat Min Exi Min Mat Sto Used RIF Installer . | . . . . . . . Robots Hacked . | . . . . . . . Non-combat . | . . . . . . . Combat . | . . . . . . . Robot Hacks Applied . | . . . . . . . Relay Couplers Released . | . . . . . . . Fabnet Peak Effective % . | . . . . . . . Robots Rewired 5 | . . . 5 . . . Allies Hacked . | . . . . . . . Hacks Repelled . | . . . . . . . Allies | -11 -10 -10 -10 -9 -8 -8 -------- Run | Yrd Mat Min Exi Min Mat Sto Total Allies 10 | . . 3 5 2 . . Largest Group 8 | . . 3 6 8 8 . Highest-Rated Group 128 | . . 40 82 128 128 . Highest-Rated Ally 31 | . . 16 21 31 31 . Total Orders . | . . . . . . . Ally Attacks 112 | . . 29 . 15 68 . Total Damage 2081 | . . 205 . 219 1657 . Kills 33 | . . 6 . 3 24 . Allies Corrupted . | . . . . . . . Allies Melted . | . . . . . . . Intel | -11 -10 -10 -10 -9 -8 -8 ------- Run | Yrd Mat Min Exi Min Mat Sto Robot Analysis Total 4 | . 2 . . . 2 . Derelict Logs Recovered 3 | . . 1 . 2 . . Drone Launches . | . . . . . . . Drone Recoveries . | . . . . . . . Exploration | -11 -10 -10 -10 -9 -8 -8 ------------- Run | Yrd Mat Min Exi Min Mat Sto Turns Passed 10261 | 135 1392 805 1600 685 4625 1019 Spaces Moved 5205 | 69 716 439 936 413 2336 296 Core 9 | 9 . . . . . . Treads 5196 | 60 716 439 936 413 2336 296 Legs . | . . . . . . . Wheels . | . . . . . . . Hover . | . . . . . . . Flight . | . . . . . . . Fastest Speed 50 | 50 160 160 160 160 153 158 Average Speed 168 | 145 160 160 160 160 168 235 Slowest Speed 245 | 160 160 160 160 160 241 245 Overloaded Moves . | . . . . . . . Propulsion Burnouts . | . . . . . . . Robots Hopped . | . . . . . . . Cave-ins Triggered 1 | . . . . . 1 . Exploration Rate (%) 70 | 5 96 79 93 93 90 36 Regions Visited 6 Branch Regions 4 Pre-discovered Areas 1 | . . 1 . . . . Known Exits Taken 1 | . . . . . 1 . Unknown Exits Taken 5 | 1 1 1 1 1 . . Scrap Searched 4 | . . 1 . 3 . . Spaces Dug 8 | . 2 . . . 6 . Terrain Destroyed 23 | . 2 . . . 7 14 Melee 8 | . 2 . . . 6 . Projectile 15 | . . . . . 1 14 AOE . | . . . . . . . Terrain Rammed . | . . . . . . . Walls Destroyed . | . . . . . . . Machines Disabled . | . . . . . . . Actions | -11 -10 -10 -10 -9 -8 -8 --------- Run | Yrd Mat Min Exi Min Mat Sto Total 6225 | 92 863 510 1035 429 2846 450 Wait 347 | . 35 41 . 8 220 43 Move 5199 | 68 715 438 935 412 2335 296 Hop . | . . . . . . . Pick Up 119 | 11 20 4 11 2 65 6 Fast Attach 15 | 1 . 1 2 . 11 . Attach 33 | 6 1 1 4 . 15 6 Detach 4 | . . . 2 . 2 . Swap 77 | . 13 6 3 2 44 9 Drop 88 | . 21 4 8 1 53 1 Fire 251 | 6 54 15 . 4 88 84 Melee 28 | . 4 . 6 . 13 5 Ram . | . . . . . . . Kick . | . . . . . . . Crush . | . . . . . . . Escape Stasis . | . . . . . . . Rewire 64 | . . . 64 . . . Trap . | . . . . . . . Miscellaneous . | . . . . . . . Route ------- -11/Scrapyard -10/Materials (discovered 4 exits: [*Mat x3] / *Min) -10/Mines (discovered 2 exits: [*Mat] / *Exi) -10/Exiles (discovered 2 exits: [*Min x2]) -9/Mines -8/Materials (discovered 4 exits: *Fac x3 / *Sto) -8/Storage History --------- Turn | Location | Event 9 | -11/Scrapyard | Discovered new exit (range 15) 136 | -11/Scrapyard | Entered Materials 312 | -10/Materials | Build established: Mutant 423 | -10/Materials | Discovered new exit (range 14) 728 | -10/Materials | Discovered new exit (range 16) 1232 | -10/Materials | Discovered new exit (range 8) 1340 | -10/Materials | Discovered new exit (range 16) 1390 | -10/Materials | Central database locked down 1528 | -10/Materials | Entered Mines 1550 | -10/Mines | Core integrity fell below 50% 1687 | -10/Mines | Assisted by bots powering up and referring to "LRC-V3" 1904 | -10/Mines | Deemed a non-threat by the Exiles lab entrance 1904 | -10/Mines | Discovered new exit (range 5) 1992 | -10/Mines | Learned location of Zion (-6) 2148 | -10/Mines | Discovered new exit (range 8) 2333 | -10/Mines | Entered Exiles 2333 | -10/Exiles | Found Exiles lab destroyed 2333 | -10/Exiles | Accompanied by 1 ally 2362 | -10/Exiles | Discovered new exit (range 14) 2709 | -10/Exiles | Opened EX-Vault 2721 | -10/Exiles | Found Trap Reconfigurator 2851 | -10/Exiles | Build established: Commander-Mutant 3371 | -10/Exiles | Discovered new exit (range 14) 3933 | -10/Exiles | Entered Mines 3933 | -9/Mines | Accompanied by 6 allies 4032 | -9/Mines | Met a Derelict bent on vengeance 4036 | -9/Mines | Learned Materials interactive machine intel 4102 | -9/Mines | Found a hidden stash of uninstalled traps 4484 | -9/Mines | Learned location of 1 exit from Materials 4594 | -9/Mines | Discovered new exit (range 5) 4618 | -9/Mines | Entered Materials 4618 | -8/Materials | Accompanied by 8 allies 4618 | -8/Materials | Evolved 4 slots: Propulsion x1, Utility x3 4619 | -8/Materials | Identified exit to Factory 4620 | -8/Materials | Loaded intel: 18 interactive machine locations 4623 | -8/Materials | Led the pair of lost Derelicts to an unsafe place 4757 | -8/Materials | Lost 4 allies 5028 | -8/Materials | Build established: Mutant 5314 | -8/Materials | Repaired Broken Arm. Treads? 5551 | -8/Materials | Repaired Broken Mak. Sensor Array 5564 | -8/Materials | Repaired Adv. Beam Cannon? 5594 | -8/Materials | Repaired Arm. Treads? 5951 | -8/Materials | Discovered exit to Factory (range 16) 7390 | -8/Materials | Discovered exit to Factory (range 12) 7534 | -8/Materials | Discovered new exit (range 13) 7594 | -8/Materials | Identified exit to Storage 7730 | -8/Materials | Central database locked down 7764 | -8/Materials | Core integrity fell below 50% 7818 | -8/Materials | First assault squad dispatched 7980 | -8/Materials | Crushed by falling debris 8160 | -8/Materials | Build established: Hacker-Mutant 8238 | -8/Materials | Repaired Mak. Sensor Array? 8320 | -8/Materials | Repaired Adv. Beam Cannon? 8880 | -8/Materials | Repaired Med. Armor Plating 9243 | -8/Materials | Entered Storage 9727 | -8/Storage | Core integrity fell below 20% 10262 | -8/Storage | Destroyed by Y-45 Defender with Beam Rifle Last Messages --------------- 10143_ Ion Engine melted. 10143_ A-02 Transporter destroyed. 10145_ K-01 Serf collects debris. 10155_ Acquired Lgt. Treads. 10157_ K-01 Serf collects debris. 10163_ Acquired Utility Shielding. 10164_ K-01 Serf collects debris. 10164_ Dropped Utility Shielding. 10165_ K-01 Serf collects debris. 10198_ Ion Cannon destroyed. 10203_ Critical hit (Burn: +37). 10204_ Acquired Backup Laser III. 10209_ Adv. Treads destroyed. 10241_ Reactive Plating destroyed. 10242_ G-47 Trooper Aluminum Leg severed. 10245_ Destroyed Lgt. Nuclear Core. 10245_ G-47 Trooper destroyed. 10255_ Acquired Particle Gun. 10260_ G-47 Trooper Aluminum Leg severed. 10262_ G-47 Trooper destroyed. Map ----- +----------------------------------------------------+ | | | | | | | | | | | | | | | | | | | | | ??????????????????????????????????????????????? | | ??????????????????????????????????????????????? | | ??????????????????????????????????????????????? | | ??????????????????????????????????????????????? | | ??????????????????????????????????????????????? | | ??????????????????????????????????????????????? | | ??????????????????????????????????????????????? | | ??????????????????????????????????????????????? | | ??????????????????????????????????????????????? | | ??????????????????????????????????????????????? | | ???????????????????###+####???????????????????? | | ???????????????????# #???????????????????? | | ???????????????????# !/ #???????????????????? | | ??????????????????## !/ =%+???????????????????? | | ??????????????????# Y=#???????????????????? | | ???????????????????# "T"@#???????????????????? | | ???????????????????# == #??####### ????????? | | ???????????????????#####+##? ???????? | | ????????????????###????#%#?? ??????? | | ###+######+###### ###### ### ??????? | | # ## #???????? | | + """ """ ## #???????? | | # " " """ ## #???????? | | ??#+##### # "" %""" ## ###### #???????? | | ????????# / " !% "" ## #????????? ???????? | | ????????# #!!%!% "!## #?????????????????? | | ????????# # !%!=== !+ +?????????????????? | | ????????# # %[=[=# #?????????????????? | | ????????# #########"# ##+#####?????????????? | | ????????# + #?????????????? | | ????????##########+##### # #?????????????? | | ????????????????# # # """#?????????????? | | ????????????????# + + """#?????????????? | | ????????????????# # # """#?????????????? | | ????????????????# ??# # #?????????????? | | ????????????????# ????#%###########??????????? | | ????????????????#??????# # #??????????? | | ???????????????????????#=# [ #??????????? | | ???????????????????????#%# ! #??????????? | | ?????????#####????###??#%#! #??????????? | +----------------------------------------------------+ Best States ------------- Heat Dissipation 59 Energy Generation 18 Energy Capacity 280 Matter Stores 300 Matter Capacity 300 Sight Range 16 Robot Scan Range 19 Terrain Scan Range 18 Terrain Scan Density 10 Armor Coverage 375 Resistance: KI 20 Evasion (%) 50 Recoil Reduction 3 Offensive Hacking 20 Defensive Hacking 11 Item Schematics ----------------- Mak. Sensor Array | -8/Materials | Scanalyzed Machine Analyzer | -8/Materials | Scanalyzed Enh. Autogun | -8/Materials | Scanalyzed Robot Schematics ------------------ None Fabricated ------------ Nothing Alien Tech Used ----------------- None Achievements -------------- A New Friend Backstab The More The Merrier Challenges ------------ None Game ------ Seed PiercingKineticMinigun Manual? 0 Play Time 02:01:24 Cumulative 26.2 hours Start 2024.04.27 @ 17:19:16 End 2024.04.29 @ 14:17:50 Sessions 5 Manual Loads 0 Difficulty Rogue Special Mode None Game No. 23 Rogue 18 Adventurer 5 Explorer 0 Win Type - Total 0 Types 0/0/0/0/0/0/0/0/0 Lore% 23 Gallery% 27 Achievement% 22 Wizard Run 0 Options --------- Layout 2 ASCII 0 Keyboard 0 Movement Mouse Keybinds 0 Fullscreen 2 Font 24/Smallcaps Map View 50x44 Zoom Use 0% Tactical HUD 1 Map Filters NONE Filters NONE Steam 1 RUN: 44da7c17-e20d-4ae1-9690-1ca0f13e995a